bitfinex/quotes_ETHUSD_20240703
["timestamp","ask_amount","ask_price","bid_price","bid_amount"]
[1720011796286,5.37047506,3290.9,3289.5,9.297]
[1720011796521,0.01556167,3290.8,3289.6,3.10065959]
[1720011796723,0.01556167,3290.8,3289.6,4.92765959]
[1720011796926,4.8439,3290.9,3289.7,1.827]
[1720011797231,5.0345,3291.4,3290.0,4.86651]
[1720011797520,3.54205453,3291.3,3290.1,0.06077923]
[1720011797720,3.54205453,3291.3,3290.2,0.55]
[1720011797721,0.52649286,3291.2,3290.2,0.55]
[1720011798021,0.01556167,3291.2,3290.3,0.06077918]
[1720011798234,0.01556167,3291.2,3290.4,0.55]
[1720011798934,5.0345,3291.4,3290.5,4.92680624]
[1720011799120,5.0345,3291.4,3290.6,1.09768062]
[1720011799326,0.01556167,3291.3,3290.7,0.06077014]
[1720011799511,5.0345,3291.4,3290.8,0.55]
[1720011799693,0.01556167,3291.3,3290.6,1.09768062]
[1720011799881,5.0345,3291.4,3290.6,1.15845279]
[1720011800090,0.01556167,3291.3,3290.7,0.29854528]
[1720011800720,0.01556167,3291.3,3290.6,0.55]
[1720011800922,0.01556167,3291.3,3290.4,5.41614]
[1720011801122,0.01556167,3291.3,3290.4,0.55]
[1720011801320,0.01556167,3291.3,3290.5,0.06077802]
[1720011801666,0.17833963,3291.7,3290.6,5.785]
[1720011801842,0.01556167,3291.6,3290.7,0.64534625]
[1720011802136,0.01556167,3291.6,3290.8,0.55]
[1720011803028,0.01556167,3291.6,3290.9,0.06076843]
[1720011803232,0.01556167,3291.6,3290.8,0.61076843]
[1720011803430,0.17833963,3291.7,3291.0,0.06076839]
[1720011803607,0.17833963,3291.7,3291.1,0.55]
[1720011804351,0.17833963,3291.7,3291.2,0.06076486]
[1720011804545,0.17833963,3291.7,3291.3,0.55]
[1720011804803,0.17833963,3291.7,3291.4,4.92596725]
[1720011805424,0.17833963,3291.7,3291.5,1.09759673]
[1720011805467,0.17833963,3291.7,3291.5,0.55]
[1720011806191,0.17833963,3291.7,3291.1,3.408]
[1720011806213,0.17833963,3291.7,3290.9,7.47]
[1720011806214,0.01556167,3292.3,3290.9,7.47]
[1720011806215,3.01556167,3292.3,3290.9,7.47]
[1720011806230,0.01556167,3292.2,3290.9,7.47]
[1720011806249,4.6864,3292.0,3290.9,7.47]
[1720011806600,0.01556167,3291.9,3290.9,7.47]
[1720011806605,0.01556167,3291.9,3290.2,0.24377792]
[1720011806606,4.6864,3291.7,3290.2,0.24377792]
[1720011806831,0.54193905,3291.6,3290.2,0.24377792]
[1720011807149,0.52637738,3291.5,3290.2,0.24377792]
[1720011807309,0.01556167,3291.4,3290.2,0.24377792]
[1720011807657,0.52637738,3291.3,3290.2,0.24377792]
[1720011807864,0.01556167,3291.2,3290.2,0.24377792]
[1720011808048,0.01556167,3291.2,3290.3,0.36517779]
[1720011808362,0.01556167,3291.2,3290.1,3.408]
[1720011808718,0.01556167,3291.6,3290.2,0.0607809]
[1720011808909,0.52645946,3291.5,3290.2,0.0607809]
[1720011809105,0.54202113,3291.4,3290.2,0.0607809]
[1720011809311,0.52645946,3291.3,3290.3,1.20081909]
[1720011809545,0.01556167,3291.2,3290.3,1.20081909]
[1720011810536,0.01556167,3291.6,3290.3,1.20081909]
[1720011810737,0.52646633,3291.5,3290.3,1.20081909]
[1720011811057,4.6864,3291.7,3290.3,1.20081909]
[1720011811058,0.54203323,3291.4,3290.3,1.20081909]
[1720011811262,0.52650342,3291.3,3290.3,0.55]
[1720011811437,0.54206509,3291.2,3290.2,0.55]
[1720011811639,0.01556167,3291.2,3290.2,0.55]
[1720011811840,0.01556167,3291.2,3290.2,0.9458]
[1720011812324,0.52650465,3291.1,3290.2,0.9458]
[1720011812541,0.48745277,3291.6,3290.2,0.9458]
[1720011812542,0.01556167,3291.0,3290.2,0.9458]
[1720011812738,0.01556167,3291.5,3290.2,0.9458]
[1720011813072,0.52650139,3291.4,3290.2,0.9458]
[1720011813369,0.54206306,3291.3,3290.2,0.9458]
[1720011813662,0.54206306,3291.2,3290.2,0.9458]
[1720011813982,0.01556167,3291.2,3290.3,2.26238]
[1720011814188,0.01556167,3291.2,3290.4,0.55]
[1720011814457,0.01556167,3291.4,3290.4,0.55]
[1720011814771,0.52646858,3291.3,3290.4,0.55]
[1720011815053,0.01556167,3291.2,3290.4,0.55]
[1720011815254,0.01556167,3291.2,3290.5,0.281238]
[1720011815456,0.01556167,3291.2,3290.6,0.55]
[1720011816039,0.01556167,3291.4,3290.6,0.55]
[1720011816385,0.52646644,3291.3,3290.7,0.06077332]
[1720011816560,0.01556167,3291.6,3290.8,1.13457733]
[1720011816859,0.52641913,3291.5,3290.8,1.19534473]
[1720011817177,0.01556167,3291.6,3290.8,1.19534473]
[1720011817400,0.52642115,3291.5,3290.8,1.19534473]
[1720011817533,0.01556167,3291.6,3290.8,1.19534473]
[1720011817737,4.70196167,3291.7,3290.8,1.19534473]
[1720011818045,0.52641164,3291.6,3290.8,1.19534473]
[1720011818226,4.70196167,3291.7,3290.8,1.19534473]
[1720011818426,0.52641033,3291.6,3290.8,1.19534473]
[1720011818648,0.52641652,3291.5,3290.8,1.19534473]
[1720011818931,0.52642983,3291.4,3290.8,1.19534473]
[1720011819124,4.70196167,3291.7,3290.8,1.19534473]
[1720011819332,0.52642808,3291.6,3290.8,1.19534473]
[1720011819645,0.52642808,3291.5,3290.8,1.19534473]
[1720011819845,0.52642558,3291.4,3290.8,1.19534473]
[1720011820056,4.70196167,3291.7,3290.8,1.19534473]
[1720011820290,0.52643004,3291.6,3290.8,1.19534473]
[1720011820595,0.01556167,3291.5,3290.6,3.408]
[1720011820637,0.52643006,3291.4,3290.7,0.55]
[1720011820955,0.54205307,3291.3,3290.2,7.47]
[1720011821152,5.0361,3291.1,3290.2,7.47]
[1720011821351,0.54205307,3291.0,3290.2,7.47]
[1720011821554,0.5264914,3290.9,3289.6,3.69467999]
[1720011821767,0.01556167,3290.8,3289.6,3.408]
[1720011821985,0.5264914,3290.7,3289.6,3.408]
[1720011822269,0.01556167,3290.6,3289.7,1.2705]
[1720011822482,0.5264914,3290.5,3289.7,1.2705]
[1720011822635,0.01556167,3290.4,3289.7,1.2705]
[1720011822835,0.01556167,3291.0,3289.8,0.06078802]
[1720011823076,0.52657169,3290.9,3290.1,3.408]
[1720011823234,0.01556167,3291.0,3290.1,5.235]
[1720011823858,0.01556167,3291.0,3290.2,0.06077747]
[1720011824054,0.01556167,3291.0,3290.3,0.55]
[1720011824354,0.52651959,3290.9,3290.3,1.13457775]
[1720011824674,0.01556167,3290.8,3290.3,0.55]
[1720011824905,0.01556167,3290.8,3290.1,3.408]
[1720011825092,0.52656929,3290.7,3290.1,3.408]
[1720011825437,0.01556167,3291.0,3290.1,3.7488]
[1720011825563,0.52653537,3290.9,3290.1,3.7488]
[1720011825765,0.01556167,3290.8,3290.1,3.7488]
[1720011825960,0.01556167,3290.8,3290.1,3.408]
[1720011826273,0.52656903,3290.7,3289.6,3.408]
[1720011826456,0.5421307,3290.6,3289.6,3.408]
[1720011826816,0.01556167,3290.6,3289.6,3.408]
[1720011826950,0.01556167,3290.6,3289.7,0.3408]
[1720011826951,0.52660815,3290.5,3289.7,0.3408]
[1720011827063,5.0361,3291.1,3289.7,0.3408]
[1720011827064,0.01556167,3290.4,3289.7,0.3408]
[1720011827269,0.01556167,3291.0,3289.7,0.3408]
[1720011827467,0.52660025,3290.9,3289.7,0.3408]
[1720011827695,0.54216192,3290.8,3289.8,0.55]
[1720011828007,0.54216192,3290.7,3289.8,0.55]
[1720011828152,0.52660025,3290.6,3289.8,0.97988]
[1720011828351,0.01556167,3290.5,3289.8,0.97988]
[1720011828547,0.01556167,3291.0,3289.9,0.06078904]
[1720011828825,1.03174502,3290.9,3290.0,0.55]
[1720011828951,0.54214052,3290.8,3290.0,0.55]
[1720011829155,0.01556167,3290.7,3290.1,3.408]
[1720011829651,5.0361,3291.1,3290.1,3.408]
[1720011829971,0.54211549,3291.0,3290.1,3.408]
[1720011830175,0.52655382,3290.9,3290.1,3.408]
[1720011830389,0.01556167,3290.8,3290.1,3.408]
[1720011830908,0.01556167,3291.0,3290.1,3.408]
[1720011831049,0.52655043,3290.9,3290.0,0.55]
[1720011831388,0.01556167,3290.8,3289.9,0.55]
[1720011831699,0.01556167,3290.8,3290.0,0.06078343]
[1720011831869,0.01556167,3290.8,3290.1,0.55]
[1720011832384,0.01556167,3291.0,3290.1,0.55]
[1720011832588,0.52654502,3290.9,3290.1,0.55]
[1720011832781,0.01556167,3290.8,3289.9,0.55]
[1720011833105,0.01556167,3290.8,3289.9,1.07966]
[1720011833285,0.01556167,3290.8,3289.9,0.55]
[1720011833542,0.52658865,3290.7,3289.7,0.55]
[1720011833689,0.01556167,3290.6,3289.7,0.55]
[1720011833890,0.01556167,3291.0,3289.7,0.55]
[1720011834092,0.52659401,3290.9,3289.7,0.55]
[1720011834254,0.01556167,3291.0,3289.4,0.29645216]
[1720011834255,4.7465,3290.7,3289.6,0.55]
[1720011834460,1.07102125,3290.6,3289.5,0.55]
[1720011834699,0.52659401,3290.5,3289.5,0.55]
[1720011834861,0.01556167,3290.4,3289.5,0.55]
[1720011835057,0.01556167,3290.4,3289.1,3.408]
[1720011835265,5.58614692,3290.3,3288.9,9.297]
[1720011835565,5.58614692,3290.3,3288.9,10.2267]
[1720011835566,1.10237945,3290.2,3288.9,10.2267]
[1720011835754,0.52664692,3290.1,3288.9,8.3997]
[1720011835995,0.01556167,3290.0,3288.9,8.3997]
[1720011837066,0.01556167,3290.0,3289.0,0.0608051]
[1720011837270,0.01556167,3290.0,3289.1,0.84605051]
[1720011837502,0.01556167,3290.0,3289.2,0.06079677]
[1720011837801,0.01556167,3290.2,3289.3,0.55]
[1720011838169,0.01556167,3290.2,3289.4,0.06079676]
[1720011838371,0.01556167,3290.2,3289.5,0.55]
[1720011839205,5.0595,3290.3,3289.6,0.06079329]
[1720011839409,0.01556167,3290.2,3289.7,0.55]
[1720011839564,0.01556167,3290.2,3289.5,0.55]
[1720011839752,0.01556167,3290.2,3289.3,0.55]
[1720011839984,0.01556167,3290.2,3289.1,0.84605051]
[1720011840188,0.01556167,3290.2,3289.0,0.06079996]
[1720011840189,0.50750617,3290.1,3289.0,0.06079996]
[1720011840392,0.01556167,3290.0,3289.0,0.06079996]
[1720011840861,0.01556167,3290.0,3288.7,2.12510212]
[1720011841062,0.01556167,3290.0,3288.7,1.827]
[1720011841462,0.52674007,3289.9,3288.6,1.827]
[1720011841692,0.01556167,3289.8,3288.7,0.486786]
[1720011842597,4.7073,3289.7,3288.4,3.408]
[1720011842925,0.01556167,3289.6,3288.5,0.55]
[1720011843060,0.01556167,3289.6,3288.4,0.55]
[1720011845225,4.9928,3289.5,3288.2,4.31668718]
[1720011845432,4.9928,3289.3,3288.2,1.21928738]
[1720011845601,0.01556167,3289.2,3288.2,1.21928738]
[1720011845940,5.00836167,3289.3,3288.3,0.06081864]
[1720011846146,0.01556167,3289.2,3288.3,0.06081864]
[1720011846447,0.01556167,3289.2,3288.2,1.21928738]
[1720011846846,0.01556167,3289.2,3288.2,1.52391612]
[1720011847150,0.01556167,3289.2,3287.9,1.827]
[1720011847308,0.01556167,3289.2,3287.9,4.827]
[1720011847509,0.01556167,3289.2,3288.0,2.377]
[1720011847953,4.9928,3289.3,3288.3,5.235]
[1720011848123,4.9928,3289.3,3288.4,1.13430981]
[1720011848441,4.9952,3289.9,3288.4,2.96130981]
[1720011848607,0.01556167,3289.8,3288.8,3.408]
[1720011848808,0.01556167,3289.8,3288.9,0.06080169]
[1720011849021,0.01556167,3289.8,3288.9,0.40768186]
[1720011849351,4.9952,3289.9,3289.0,1.827]
[1720011849513,4.9952,3289.9,3289.1,2.43779449]
[1720011849850,4.9952,3289.9,3289.1,2.377]
[1720011850014,0.01556167,3289.8,3288.9,2.17388017]
[1720011850523,0.01556167,3289.8,3288.9,0.34688017]
[1720011850849,0.51663784,3289.8,3288.8,3.408]
[1720011851054,0.51663784,3289.8,3288.4,0.5235]
[1720011851252,0.51663784,3289.8,3288.6,1.827]
[1720011851414,0.51663784,3289.8,3288.7,2.377]
[1720011851617,0.51663784,3289.8,3288.7,2.4197]
[1720011851856,0.51663784,3289.8,3288.7,1.827]
[1720011852014,0.51663784,3289.8,3288.5,0.55]
[1720011852217,0.51663784,3289.8,3288.4,0.5235]
[1720011852723,0.51663784,3289.8,3288.0,0.28735414]
[1720011852924,0.51663784,3289.8,3287.9,3.0]
[1720011853326,0.51663784,3289.8,3288.0,1.827]
[1720011853867,0.51663784,3289.8,3288.2,1.827]
[1720011854032,0.51663784,3289.8,3288.4,1.827]
[1720011854364,0.51663784,3289.8,3288.5,2.68158646]
[1720011854570,4.9952,3289.9,3288.5,5.88658646]
[1720011854762,4.9952,3289.9,3288.5,8.92747646]
[1720011855256,0.01556167,3290.3,3289.0,1.827]
[1720011855435,0.01556167,3290.3,3289.1,2.4377944]
[1720011855619,4.7846,3290.4,3289.1,2.4377944]
[1720011855822,0.01556167,3290.3,3289.3,1.827]
[1720011856023,5.26306,3290.4,3289.4,2.43778982]
[1720011856274,5.26306,3290.4,3289.4,5.84578982]
[1720011856275,4.7846,3290.4,3289.4,5.84578982]
[1720011856472,4.8338,3290.9,3289.4,5.84578982]
[1720011856621,0.54215926,3290.8,3289.4,5.84578982]
[1720011856923,0.01556167,3290.7,3289.4,5.84578982]
[1720011857689,0.01556167,3290.7,3289.4,8.88582982]
[1720011857844,0.01556167,3290.8,3289.6,4.86688]
[1720011858029,0.01556167,3290.8,3289.8,1.827]
[1720011858234,0.01556167,3290.8,3289.9,0.61078167]
[1720011859577,0.01556167,3290.8,3289.9,0.55]
[1720011859773,0.01556167,3290.8,3290.0,0.06078167]
[1720011859774,0.48493617,3290.7,3290.0,0.06078167]
[1720011860367,0.01556167,3290.8,3290.0,0.06078167]
[1720011860733,0.01556167,3290.8,3289.9,0.06078166]
[1720011861240,4.6855,3291.6,3290.1,1.827]
[1720011861450,0.54207722,3291.5,3290.2,0.06077511]
[1720011861665,0.46855,3291.5,3290.4,1.827]
[1720011861976,0.48411167,3291.5,3290.5,2.4377681]
[1720011862135,0.48411167,3291.5,3290.6,0.55]
[1720011862335,0.51696117,3291.4,3290.7,0.06076928]
[1720011863786,0.01556167,3291.3,3290.4,1.827]
[1720011863939,0.51696117,3291.4,3290.5,0.06077388]
[1720011864145,0.01556167,3291.3,3290.3,1.827]
[1720011864348,0.01556167,3291.3,3290.4,0.55]
[1720011864947,0.01556167,3291.3,3290.0,1.827]
[1720011865237,0.01556167,3291.3,3289.6,3.03981]
[1720011865546,0.01556167,3291.3,3289.7,3.03978]
[1720011865959,0.01556167,3291.3,3289.8,11.1963735]
[1720011866371,0.01556167,3291.3,3289.8,12.705]
[1720011866882,0.01556167,3291.3,3289.9,0.55]
[1720011867180,0.01556167,3291.3,3290.0,0.06078044]
[1720011867684,0.01556167,3291.3,3290.2,1.827]
[1720011867854,0.01556167,3291.3,3290.3,0.61077434]
[1720011868245,0.51696117,3291.4,3290.3,2.68155177]
[1720011868790,0.01556167,3291.3,3290.3,2.68155177]
[1720011869144,0.01556167,3291.3,3290.3,2.377]
[1720011869363,0.01556167,3291.3,3289.9,7.86659]
[1720011869574,0.01556167,3291.3,3289.9,7.92736461]
[1720011869773,0.01556167,3291.3,3289.9,4.827]
[1720011870678,0.01556167,3291.3,3290.0,0.55]
[1720011872562,0.01556167,3291.3,3290.1,0.0607793]
[1720011872772,0.01556167,3291.3,3290.0,0.55]
[1720011872975,4.9434,3291.2,3290.0,0.55]
[1720011873157,0.51145784,3291.1,3289.9,1.827]
[1720011875364,0.51145784,3291.1,3289.3,7.47]
[1720011875365,5.40821456,3291.0,3289.3,7.47]
[1720011875584,0.54217623,3290.9,3289.1,8.15924]
[1720011875786,0.01556167,3290.9,3289.4,2.561]
[1720011876259,0.01556167,3290.9,3289.4,4.388]
[1720011876568,0.48971617,3290.8,3289.4,4.388]
[1720011876773,0.01556167,3290.7,3289.4,4.388]
[1720011877286,0.01556167,3290.7,3289.9,2.561]
[1720011877468,0.01556167,3290.8,3290.0,0.06078312]
[1720011877670,0.50527784,3290.8,3290.0,0.06078312]
[1720011878162,0.50527784,3290.8,3289.7,4.388]
[1720011878396,0.01556167,3290.7,3289.8,0.55]
[1720011879309,0.01556167,3290.7,3289.5,1.827]
[1720011879456,0.01556167,3290.7,3289.6,0.61078814]
[1720011879965,0.01556167,3290.7,3289.6,3.17178814]
[1720011880585,0.01556167,3290.7,3289.6,3.111]
[1720011880783,0.01556167,3290.7,3289.7,0.06078813]
[1720011880994,0.01556167,3290.7,3289.8,0.0607881]
[1720011881464,0.50527784,3290.8,3289.8,0.0607881]
[1720011881661,0.50527784,3290.8,3289.8,0.56066691]
[1720011881964,0.01556167,3290.7,3289.9,0.06078206]
[1720011882159,0.50527784,3290.8,3289.9,0.06078206]
[1720011883004,0.54218534,3290.7,3289.7,2.561]
[1720011883301,5.27432367,3290.6,3289.7,2.561]
[1720011883596,1.07117387,3290.5,3289.7,2.561]
[1720011883805,0.52662367,3290.4,3289.7,2.561]
[1720011884103,0.01556167,3290.3,3289.7,2.561]
[1720011884624,0.52666518,3290.2,3289.7,2.561]
[1720011884761,0.01556167,3290.1,3289.7,2.561]
[1720011884958,0.01556167,3290.4,3289.7,2.561]
[1720011885175,0.52667881,3290.3,3289.7,2.561]
[1720011885386,0.52898853,3290.5,3289.7,2.561]
[1720011885387,0.54224048,3290.2,3289.7,2.561]
[1720011885593,0.54224048,3290.2,3289.1,7.47]
[1720011885594,4.8178,3290.0,3289.3,2.561]
[1720011885766,0.54224048,3289.9,3289.3,2.561]
[1720011886066,0.52674858,3289.8,3289.1,7.47]
[1720011886211,4.8178,3290.0,3289.1,7.47]
[1720011886212,0.54231025,3289.7,3289.1,7.47]
[1720011886467,0.52674858,3289.6,3289.1,7.47]
[1720011886594,0.52674858,3289.6,3289.1,10.031]
[1720011886784,0.01556167,3289.5,3289.1,7.47]
[1720011886989,4.9958,3289.4,3289.1,7.47]
[1720011887206,4.9958,3289.4,3288.4,7.47]
[1720011887207,0.51669784,3289.3,3288.4,7.47]
[1720011887426,0.51669784,3289.3,3287.9,0.29854127]
[1720011887574,0.51669784,3289.3,3288.0,0.06081741]
[1720011887575,0.52687497,3289.2,3288.0,0.06081741]
[1720011887783,0.54243664,3289.1,3288.1,2.561]
[1720011888013,0.01556167,3289.2,3288.2,0.06081324]
[1720011888318,4.9958,3289.4,3288.5,2.561]
[1720011888482,0.01556167,3289.3,3288.5,2.561]
[1720011888687,0.01556167,3289.3,3288.4,0.06080899]
[1720011889374,0.01556167,3289.3,3287.9,0.09584684]
[1720011889624,1.02802171,3289.2,3288.1,2.561]
[1720011889784,0.50113617,3289.2,3288.2,1.88781711]
[1720011889969,4.9958,3289.4,3288.2,1.88781711]
[1720011889970,4.9958,3289.4,3288.3,0.06081194]
[1720011890744,4.9958,3289.4,3288.4,2.377]
[1720011891022,4.7225,3289.8,3288.8,1.827]
[1720011891206,4.7225,3289.8,3289.0,1.827]
[1720011891378,4.7225,3289.8,3289.1,0.61079662]
[1720011893089,5.1454,3290.3,3289.1,2.43779662]
[1720011893294,5.1454,3290.3,3289.4,3.417]
[1720011893529,0.01556167,3290.2,3289.4,0.3417]
[1720011893725,0.01556167,3290.2,3289.1,2.377]
[1720011894508,0.01556167,3290.2,3289.1,0.55]
[1720011894710,0.01556167,3290.2,3288.6,3.71359131]
[1720011894711,0.01556167,3290.2,3288.7,1.827]
[1720011894904,0.01556167,3290.2,3288.8,5.47840975]
[1720011895198,0.01556167,3290.2,3289.2,3.417]
[1720011895396,0.01556167,3290.2,3289.3,0.40249479]
[1720011896294,0.01556167,3290.2,3289.2,3.417]
[1720011896940,0.01556167,3290.2,3288.7,6.417]
[1720011897140,0.52671707,3290.1,3288.7,3.417]
[1720011897345,0.54227874,3290.0,3288.7,3.417]
[1720011897634,0.54227874,3290.0,3288.4,1.827]
[1720011897635,0.52671707,3289.9,3288.4,1.827]
[1720011897950,0.01556167,3289.8,3288.5,0.1827]
[1720011898448,4.8276,3289.6,3288.5,0.1827]
[1720011898597,0.01556167,3289.5,3288.2,10.1248]
[1720011898794,0.01556167,3289.5,3288.4,1.827]
[1720011898993,0.01556167,3289.5,3288.5,0.55]
[1720011899460,0.01556167,3289.5,3287.8,1.827]
[1720011899726,0.526852,3289.4,3288.0,1.827]
[1720011899796,0.01556167,3289.3,3288.0,1.827]
[1720011900301,0.01556167,3289.5,3288.4,5.244]
[1720011900503,0.01556167,3289.5,3288.5,2.41220541]
[1720011900725,0.01556167,3289.5,3288.5,0.5244]
[1720011900903,0.01556167,3289.5,3288.4,3.417]
[1720011902092,4.8276,3289.6,3288.5,0.06081219]
[1720011902620,4.8276,3289.6,3288.6,2.377]
[1720011902633,0.01556167,3289.9,3288.9,3.417]
[1720011903022,5.0063,3290.1,3289.0,0.06080308]
[1720011903214,0.01556167,3290.0,3289.1,1.08048031]
[1720011903447,0.01556167,3290.0,3288.9,3.417]
[1720011903607,0.52674906,3289.9,3288.6,5.0714]
[1720011903918,0.01556167,3289.8,3288.7,0.55]
[1720011904113,5.1322,3289.7,3288.6,3.417]
[1720011904303,1.05709895,3289.6,3287.5,7.47]
[1720011904554,1.05709895,3289.6,3287.4,1.827]
[1720011904555,5.55506111,3289.5,3287.4,1.827]
[1720011904760,5.0283,3289.3,3287.5,3.417]
[1720011905338,0.54248826,3289.2,3287.5,3.417]
[1720011905352,1.08400542,3289.1,3287.6,0.58522626]
[1720011905514,4.7158,3288.9,3287.5,3.417]
[1720011905935,0.01556167,3288.8,3287.6,0.0608268]
[1720011906876,0.01556167,3288.8,3287.5,3.417]
[1720011907017,0.52696545,3288.7,3287.5,3.417]
[1720011907341,4.7158,3288.9,3287.5,3.417]
[1720011907342,0.54252712,3288.6,3287.5,3.417]
[1720011907569,0.01556167,3288.6,3287.5,3.417]
[1720011908369,0.01556167,3288.6,3286.7,3.04255]
[1720011908370,4.7843,3288.3,3286.2,1.827]
[1720011908523,4.7843,3288.3,3285.8,4.903]
[1720011908524,0.54253912,3288.2,3286.5,1.827]
[1720011908718,0.52697745,3288.1,3286.5,1.827]
[1720011909024,0.01556167,3288.0,3286.8,3.417]
[1720011909225,0.01556167,3288.0,3286.8,5.244]
[1720011909428,0.01556167,3288.0,3286.9,0.5244]
[1720011909669,0.01556167,3288.0,3287.0,0.06084119]
[1720011910156,0.01556167,3288.0,3286.8,3.417]
[1720011910389,4.7409,3287.9,3286.2,7.47]
[1720011910534,4.7409,3287.9,3286.3,3.747]
[1720011910535,0.49120784,3287.8,3286.3,3.747]
[1720011910726,0.01556167,3287.7,3286.3,3.747]
[1720011910950,0.01556167,3287.7,3286.3,0.747]
[1720011911279,0.01556167,3287.7,3286.5,3.417]
[1720011911366,0.01556167,3287.7,3286.5,3.8334]
[1720011911515,0.01556167,3287.7,3286.5,3.417]
[1720011911749,0.01556167,3287.7,3285.9,3.417]
[1720011911750,4.6701,3287.6,3285.9,3.417]
[1720011911965,0.01556167,3287.5,3286.4,3.417]
[1720011912128,4.6701,3287.6,3286.9,3.417]
[1720011912333,0.01556167,3287.5,3286.5,0.3417]
[1720011913064,4.6701,3287.6,3286.9,3.417]
[1720011913366,4.7053,3288.2,3287.0,0.06083878]
[1720011913577,0.01556167,3288.1,3287.3,3.417]
[1720011915551,0.01556167,3288.1,3287.1,0.34778388]
[1720011915784,0.01556167,3288.1,3287.1,2.23561955]
[1720011916055,5.13276167,3288.7,3287.7,3.417]
[1720011916266,5.13276167,3288.7,3287.8,0.06082362]
[1720011916764,0.01556167,3288.6,3287.7,5.244]
[1720011916922,0.01556167,3288.6,3287.8,0.55]
[1720011917152,0.01556167,3288.6,3287.9,0.5794]
[1720011917967,5.02646167,3289.3,3288.2,3.417]
[1720011918253,0.01556167,3289.2,3288.3,0.06081488]
[1720011918464,0.01556167,3289.2,3288.3,0.83460649]
[1720011918819,0.01556167,3289.2,3288.1,1.827]
[1720011919019,0.01556167,3289.2,3288.2,0.6108136]
[1720011919365,0.01556167,3289.7,3288.3,0.06081358]
[1720011919523,0.01556167,3289.7,3288.4,0.55]
[1720011919718,0.51820784,3289.7,3288.5,0.6086914]
[1720011920257,0.51820784,3289.7,3288.5,2.4356914]
[1720011920455,0.51820784,3289.7,3288.6,0.55]
[1720011920622,0.51820784,3289.7,3288.7,0.06080594]
[1720011920819,0.51820784,3289.7,3288.8,0.06080489]
[1720011921053,0.51820784,3289.7,3288.6,2.377]
[1720011921259,0.51820784,3289.7,3288.1,6.622]
[1720011921260,0.51820784,3289.7,3288.1,1.827]
[1720011921468,0.51820784,3289.7,3288.2,0.55]
[1720011921759,0.51820784,3289.7,3288.6,4.86776]
[1720011921929,0.01556167,3289.7,3288.7,2.43780261]
[1720011922132,0.01556167,3289.7,3288.7,2.377]
[1720011922859,0.01556167,3289.8,3288.8,0.06080267]
[1720011923434,0.01556167,3289.8,3288.7,2.377]
[1720011923944,5.0109,3289.9,3288.8,4.92838135]
[1720011924149,5.0109,3289.9,3288.9,1.70190714]
[1720011924359,0.01556167,3290.3,3289.0,0.06079643]
[1720011924679,0.01556167,3290.7,3289.4,1.827]
[1720011924882,0.01556167,3290.7,3289.5,0.61078907]
[1720011925213,0.01556167,3290.7,3289.7,1.827]
[1720011925935,0.01556167,3290.7,3289.8,0.06078629]
[1720011926670,0.01556167,3290.7,3289.7,1.827]
[1720011926972,0.01556167,3290.7,3289.8,0.06078632]
[1720011927193,5.08906167,3290.9,3289.9,0.55]
[1720011927378,5.0735,3290.9,3290.0,0.30455996]
[1720011927549,0.01556167,3290.8,3290.0,0.30455996]
[1720011928334,0.01556167,3290.8,3290.0,0.24377863]
[1720011928745,0.01556167,3290.8,3289.6,2.37478391]
[1720011929113,0.01556167,3290.8,3289.2,3.0]
[1720011929334,0.01556167,3290.8,3288.9,7.60939714]
[1720011929335,3.01556167,3290.8,3288.9,1.15190714]
[1720011929596,6.33135986,3290.8,3288.9,1.15190714]
[1720011929872,5.52600451,3290.7,3288.6,1.827]
[1720011930044,3.01556167,3290.6,3288.6,1.827]
[1720011931091,3.01556167,3290.6,3288.7,2.377]
[1720011932081,3.01556167,3290.6,3288.8,0.06080182]
[1720011932492,3.01556167,3290.6,3288.7,2.377]
[1720011932493,3.0,3290.4,3288.7,2.377]
[1720011932700,3.0,3290.4,3288.7,0.55]
[1720011932701,3.01556167,3290.3,3288.7,0.55]
[1720011932857,0.01556167,3290.2,3288.6,0.55]
[1720011933298,0.01556167,3290.2,3288.5,3.55]
[1720011933488,0.30155617,3290.1,3288.6,0.659099]
[1720011933664,0.30155617,3290.1,3288.7,2.43780389]
[1720011933665,0.01556167,3290.0,3288.7,2.43780389]
[1720011933983,0.01556167,3290.0,3288.7,8.47848389]
[1720011934200,3.01556167,3290.4,3288.9,1.827]
[1720011934489,3.01556167,3290.4,3289.0,2.377]
[1720011934694,0.81099178,3290.3,3289.1,0.2377]
[1720011934989,0.01556167,3290.2,3289.1,0.2377]
[1720011935307,0.01556167,3290.2,3288.7,1.827]
[1720011935531,0.01556167,3290.2,3288.4,1.827]
[1720011935532,5.0058,3290.1,3288.4,1.827]
[1720011935796,0.01556167,3290.0,3288.4,1.827]
[1720011936152,3.01556167,3290.0,3288.4,1.827]
[1720011936494,1.00378589,3289.9,3288.3,1.827]
[1720011936795,0.01556167,3289.8,3288.3,1.827]
[1720011937755,0.01556167,3289.8,3288.4,0.55]
[1720011938398,0.01556167,3289.8,3288.4,2.377]
[1720011938818,0.01556167,3289.8,3288.5,0.06080688]
[1720011939072,0.01556167,3289.8,3288.5,0.60869457]
[1720011939252,0.01556167,3289.8,3288.5,5.47657457]
[1720011939390,0.01556167,3289.8,3288.6,2.377]
[1720011939584,0.01556167,3289.9,3288.7,0.06079875]
[1720011939925,0.01556167,3289.9,3288.9,1.827]
[1720011940227,0.01556167,3289.9,3289.0,0.30457865]
[1720011940724,5.0058,3290.1,3289.2,1.827]
[1720011940936,5.0058,3290.1,3289.0,2.07077988]
[1720011941080,0.01556167,3290.0,3289.1,2.377]
[1720011941280,0.01556167,3290.0,3289.2,0.26207799]
[1720011942605,10.32,3290.8,3289.3,0.06079416]
[1720011942606,0.01556167,3290.4,3289.3,0.06079416]
[1720011943128,0.01556167,3290.4,3289.4,2.377]
[1720011943301,0.01556167,3290.4,3289.5,0.06078896]
[1720011943830,0.01556167,3290.4,3289.4,2.377]
[1720011943988,0.01556167,3290.4,3289.6,0.06078899]